[Event "2021 m. Jauniu lyga. III etapas. B"]
[Site "Siauliai"]
[Date "2021.07.04"]
[Round "2.4"]
[White "Persinas, Vilius"]
[Black "Ravlusevic, Evelina"]
[Result "1/2-1/2"]
[WhiteElo "1668"]
[BlackElo "1748"]
[PlyCount "92"]
[EventDate "2021.??.??"]
[TimeControl "8+4"]
[WhiteClock "0:00:19"]
[BlackClock "0:00:21"]

1. c4 {[%emt 0:00:00]} c6 {[%emt 0:00:02]} 2. g3 {[%emt 0:00:03]} d5 {[%emt 0:
00:02]} 3. Bg2 {[%emt 0:00:01]} g6 {[%emt 0:00:01]} 4. e3 {[%emt 0:00:19]} Bg7
{[%emt 0:00:02]} 5. Ne2 {[%emt 0:00:00]} Nf6 {[%emt 0:00:04]} 6. O-O {[%emt 0:
00:02]} O-O {[%emt 0:00:02]} 7. Nbc3 {[%emt 0:00:10]} e5 {[%emt 0:00:03]} 8. d3
{[%emt 0:00:02]} Be6 {[%emt 0:00:12]} 9. cxd5 {[%emt 0:00:09]} cxd5 {[%emt 0:
00:02]} 10. b4 {[%emt 0:00:15]} a6 {[%emt 0:00:03]} 11. a4 {[%emt 0:00:11]} Nc6
{[%emt 0:00:04]} 12. Ba3 {[%emt 0:00:07]} Re8 {[%emt 0:00:11]} 13. Qd2 {[%emt
0:00:28]} Rc8 {[%emt 0:00:08]} 14. Rfc1 {[%emt 0:00:07]} a5 {[%emt 0:00:27]}
15. Rab1 {[%emt 0:00:38]} d4 {[%emt 0:01:00]} 16. Nb5 {[%emt 0:01:06]} dxe3 {
[%emt 0:00:28]} 17. Qxe3 {[%emt 0:00:10]} Nd5 {[%emt 0:00:30]} 18. Bxd5 {[%emt
0:00:30]} Bxd5 {[%emt 0:00:09]} 19. bxa5 {[%emt 0:00:11]} Bf8 {[%emt 0:01:06]}
20. Bxf8 {[%emt 0:00:14]} Rxf8 {[%emt 0:00:03]} 21. Nbc3 {[%emt 0:00:11]} Be6 {
[%emt 0:00:16]} 22. Rxb7 {[%emt 0:00:20]} Qxa5 {[%emt 0:00:39]} 23. Rb5 {[%emt
0:00:34]} Qa8 {[%emt 0:00:10]} 24. a5 {[%emt 0:01:12]} Bh3 {[%emt 0:00:09]} 25.
Ne4 {[%emt 0:00:33]} Na7 {[%emt 0:01:47]} 26. Rxc8 {[%emt 0:00:15]} Rxc8 {
[%emt 0:00:04]} 27. Rxe5 {[%emt 0:00:04]} Qb8 {[%emt 0:00:22]} 28. Re8+ {[%emt
0:00:54]} Rxe8 {[%emt 0:01:01]} 29. Nf6+ {[%emt 0:00:00]} Kf8 {[%emt 0:00:12]}
30. Nxe8 {[%emt 0:01:05]} Qxe8 {[%emt 0:00:04]} 31. Nf4 {[%emt 0:00:14]} Qxe3 {
[%emt 0:00:22]} 32. fxe3 {[%emt 0:00:01]} Bc8 {[%emt 0:00:02]} 33. Nd5 {[%emt
0:00:08]} Nc6 {[%emt 0:00:09]} 34. Nf6 {[%emt 0:00:05]} h5 {[%emt 0:00:09]} 35.
Kg2 {[%emt 0:00:05]} Nxa5 {[%emt 0:00:02]} 36. h3 {[%emt 0:00:03]} Nc6 {[%emt
0:00:04]} 37. g4 {[%emt 0:00:02]} hxg4 {[%emt 0:00:12]} 38. hxg4 {[%emt 0:00:
04]} Ne5 {[%emt 0:00:01]} 39. Kg3 {[%emt 0:00:09]} Nxd3 {[%emt 0:00:01]} 40. g5
{[%emt 0:00:02]} Ne5 {[%emt 0:00:03]} 41. Kf4 {[%emt 0:00:02]} Nd7 {[%emt 0:00:
02]} 42. Ne4 {[%emt 0:00:02]} Kg7 {[%emt 0:00:03]} 43. Nd6 {[%emt 0:00:01]} Nc5
{[%emt 0:00:04]} 44. Nxc8 {[%emt 0:00:02]} Ne6+ {[%emt 0:00:02]} 45. Kg4 {
[%emt 0:00:01]} Kf8 {[%emt 0:00:03]} 46. Nd6 {[%emt 0:00:03]} Ke7 {[%emt 0:00:
01]} 1/2-1/2

[Event "2021 m. Jauniu lyga. III etapas. B"]
[Site "Siauliai"]
[Date "2021.07.04"]
[Round "3.1"]
[White "Ravlusevic, Evelina"]
[Black "Ser, Daniel"]
[Result "1/2-1/2"]
[WhiteElo "1748"]
[BlackElo "1710"]
[PlyCount "60"]
[EventDate "2021.??.??"]
[TimeControl "8+4"]
[WhiteClock "0:04:05"]
[BlackClock "0:00:08"]

1. d4 {[%emt 0:00:00]} f5 {[%emt 0:00:00]} 2. g3 {[%emt 0:00:04]} Nf6 {[%emt 0:
00:00]} 3. Bg2 {[%emt 0:00:02]} g6 4. c3 {[%emt 0:00:01]} Bg7 {[%emt 0:00:03]}
5. Qb3 {[%emt 0:00:02]} d5 {[%emt 0:00:16]} 6. Nf3 {[%emt 0:00:03]} c6 {[%emt
0:00:08]} 7. O-O {[%emt 0:00:11]} O-O {[%emt 0:00:08]} 8. Nbd2 {[%emt 0:00:01]}
Nbd7 {[%emt 0:00:02]} 9. a4 {[%emt 0:00:17]} Re8 {[%emt 0:00:49]} 10. c4 {
[%emt 0:00:07]} e5 {[%emt 0:00:51]} 11. dxe5 {[%emt 0:00:05]} Nxe5 {[%emt 0:00:
04]} 12. Nxe5 {[%emt 0:00:03]} Rxe5 {[%emt 0:00:02]} 13. Re1 {[%emt 0:00:04]}
Re8 {[%emt 0:01:08]} 14. Nf3 {[%emt 0:00:15]} dxc4 {[%emt 0:01:15]} 15. Qxc4+ {
[%emt 0:00:09]} Be6 {[%emt 0:00:00]} 16. Qb4 {[%emt 0:00:05]} Qe7 {[%emt 0:02:
04]} 17. Bd2 {[%emt 0:00:31]} Ne4 {[%emt 0:00:12]} 18. Qxe7 {[%emt 0:00:05]}
Rxe7 {[%emt 0:00:01]} 19. Bb4 {[%emt 0:00:06]} Rd7 {[%emt 0:00:29]} 20. Ba3 {
[%emt 0:00:09]} Rad8 {[%emt 0:00:07]} 21. h4 {[%emt 0:00:23]} h6 {[%emt 0:00:
04]} 22. Rac1 {[%emt 0:00:12]} Bb3 {[%emt 0:00:24]} 23. Bh3 {[%emt 0:00:21]} h5
{[%emt 0:00:42]} 24. a5 {[%emt 0:00:13]} Bf6 {[%emt 0:00:28]} 25. Bg2 {[%emt 0:
00:26]} Kf7 {[%emt 0:00:01]} 26. Nh2 {[%emt 0:00:24]} a6 {[%emt 0:00:32]} 27.
Bxe4 {[%emt 0:00:17]} fxe4 {[%emt 0:00:01]} 28. Nf1 {[%emt 0:00:03]} Bd4 {
[%emt 0:00:07]} 29. Kg2 {[%emt 0:00:42]} Ba7 {[%emt 0:00:13]} 30. Rc3 {[%emt 0:
00:17]} Be6 {[%emt 0:00:04]} 1/2-1/2

[Event "2021 m. Jauniu lyga. III etapas. B"]
[Site "Siauliai"]
[Date "2021.07.04"]
[Round "3.2"]
[White "Simkunaite, Gabija"]
[Black "Persinas, Vilius"]
[Result "1-0"]
[WhiteElo "1899"]
[BlackElo "1668"]
[PlyCount "51"]
[EventDate "2021.??.??"]
[TimeControl "8+4"]
[WhiteClock "0:05:19"]
[BlackClock "0:04:16"]

1. e4 {[%emt 0:00:00]} c6 {[%emt 0:00:02]} 2. d4 {[%emt 0:00:01]} d5 {[%emt 0:
00:00]} 3. exd5 {[%emt 0:00:02]} cxd5 {[%emt 0:00:00]} 4. c4 {[%emt 0:00:00]}
Nf6 {[%emt 0:00:03]} 5. Nc3 {[%emt 0:00:01]} e6 {[%emt 0:00:00]} 6. Nf3 {[%emt
0:00:02]} Bb4 {[%emt 0:00:01]} 7. Qa4+ {[%emt 0:00:59]} Nc6 {[%emt 0:00:02]} 8.
cxd5 {[%emt 0:00:02]} Nxd5 {[%emt 0:00:09]} 9. Bd2 {[%emt 0:00:20]} O-O {[%emt
0:00:03]} 10. Bd3 {[%emt 0:00:06]} Nb6 {[%emt 0:00:16]} 11. Qc2 {[%emt 0:00:05]
} h6 {[%emt 0:00:06]} 12. O-O {[%emt 0:01:01]} Nxd4 {[%emt 0:01:55]} 13. Nxd4 {
[%emt 0:00:12]} Qxd4 {[%emt 0:00:01]} 14. Be3 {[%emt 0:00:30]} Qf6 {[%emt 0:00:
38]} 15. Ne4 {[%emt 0:00:07]} Qe7 {[%emt 0:00:05]} 16. a3 {[%emt 0:00:02]} Bd6
{[%emt 0:00:10]} 17. Nxd6 {[%emt 0:00:03]} Qxd6 {[%emt 0:00:03]} 18. Bc5 {
[%emt 0:00:05]} Qc6 {[%emt 0:00:41]} 19. Bh7+ {[%emt 0:00:02]} Kh8 {[%emt 0:00:
08]} 20. Bxf8 {[%emt 0:00:02]} Nd7 {[%emt 0:00:55]} 21. Bb4 {[%emt 0:00:20]} g6
{[%emt 0:00:02]} 22. Bxg6 {[%emt 0:00:09]} fxg6 {[%emt 0:00:02]} 23. Qxg6 {
[%emt 0:00:01]} e5 {[%emt 0:00:03]} 24. Qe8+ {[%emt 0:00:05]} Kh7 {[%emt 0:00:
03]} 25. Rac1 {[%emt 0:00:04]} Nf6 {[%emt 0:00:02]} 26. Qf7+ {[%emt 0:00:04]}
1-0

[Event "2021 m. Jauniu lyga. III etapas. B"]
[Site "Siauliai"]
[Date "2021.07.04"]
[Round "3.3"]
[White "Maciuitis, Ignas"]
[Black "Dijokas, Jokubas"]
[Result "1-0"]
[WhiteElo "1855"]
[BlackElo "1335"]
[PlyCount "89"]
[EventDate "2021.??.??"]
[TimeControl "8+4"]
[WhiteClock "0:01:35"]
[BlackClock "0:00:07"]

1. e4 {[%emt 0:07:43]} c6 {[%emt 0:00:07]} 2. Nc3 {[%emt 0:00:01]} d5 {[%emt 0:
00:02]} 3. Nf3 {[%emt 0:00:01]} Bg4 {[%emt 0:00:00]} 4. h3 {[%emt 0:00:01]}
Bxf3 {[%emt 0:00:02]} 5. Qxf3 {[%emt 0:00:02]} e6 {[%emt 0:00:02]} 6. d4 {
[%emt 0:00:03]} Nf6 {[%emt 0:00:03]} 7. Bd3 {[%emt 0:00:08]} dxe4 {[%emt 0:00:
12]} 8. Nxe4 {[%emt 0:00:02]} Qxd4 {[%emt 0:00:05]} 9. Be3 {[%emt 0:00:14]} Qd8
{[%emt 0:00:10]} 10. O-O-O {[%emt 0:00:04]} Nbd7 {[%emt 0:00:16]} 11. Rhe1 {
[%emt 0:00:06]} Qa5 {[%emt 0:00:28]} 12. Kb1 {[%emt 0:00:11]} h6 {[%emt 0:00:
35]} 13. g4 {[%emt 0:00:50]} O-O-O {[%emt 0:00:51]} 14. Nxf6 {[%emt 0:00:51]}
Nxf6 {[%emt 0:00:21]} 15. Bc4 {[%emt 0:00:08]} Be7 {[%emt 0:00:30]} 16. h4 {
[%emt 0:00:46]} Rhf8 {[%emt 0:02:14]} 17. Bf4 {[%emt 0:00:50]} Qb4 {[%emt 0:00:
42]} 18. Bb3 {[%emt 0:00:14]} Nd5 {[%emt 0:00:34]} 19. Bg3 {[%emt 0:00:28]} Bd6
{[%emt 0:00:26]} 20. Re4 {[%emt 0:00:03]} Qc5 {[%emt 0:00:50]} 21. Rc4 {[%emt
0:01:10]} Qb6 {[%emt 0:00:07]} 22. Bxd6 {[%emt 0:00:25]} Rxd6 {[%emt 0:00:02]}
23. Re1 {[%emt 0:00:18]} Kb8 {[%emt 0:00:13]} 24. a3 {[%emt 0:00:06]} Qc7 {
[%emt 0:00:12]} 25. g5 {[%emt 0:00:08]} hxg5 {[%emt 0:00:04]} 26. hxg5 {[%emt
0:00:00]} Qe7 {[%emt 0:00:12]} 27. Qg3 {[%emt 0:00:01]} Ka8 {[%emt 0:00:11]}
28. Ra4 {[%emt 0:00:07]} Nb6 {[%emt 0:00:08]} 29. Rb4 {[%emt 0:00:01]} Rfd8 {
[%emt 0:00:03]} 30. c4 {[%emt 0:00:07]} c5 {[%emt 0:00:09]} 31. Rb5 {[%emt 0:
00:03]} Rc6 {[%emt 0:00:07]} 32. g6 {[%emt 0:00:07]} f6 {[%emt 0:00:07]} 33. f4
{[%emt 0:00:15]} Qd7 {[%emt 0:00:05]} 34. Ka2 {[%emt 0:00:20]} Qd3 {[%emt 0:00:
04]} 35. Qf2 {[%emt 0:00:08]} Qd4 {[%emt 0:00:02]} 36. Qe2 {[%emt 0:00:12]} Qd3
{[%emt 0:00:02]} 37. Qg4 {[%emt 0:00:06]} f5 {[%emt 0:00:03]} 38. Qg5 {[%emt 0:
00:04]} Nxc4 {[%emt 0:00:03]} 39. Rd1 {[%emt 0:00:06]} Qxd1 {[%emt 0:00:08]}
40. Bxd1 {[%emt 0:00:03]} Rxd1 {[%emt 0:00:03]} 41. Qe7 {[%emt 0:00:04]} Nb6 {
[%emt 0:00:05]} 42. Qxg7 {[%emt 0:00:21]} Rd7 {[%emt 0:00:05]} 43. Qg8+ {[%emt
0:00:05]} Rc8 {[%emt 0:00:02]} 44. Qxe6 {[%emt 0:00:02]} Re8 {[%emt 0:00:08]}
45. Qxe8+ {[%emt 0:00:02]} 1-0

[Event "2021 m. Jauniu lyga. III etapas. B"]
[Site "Siauliai"]
[Date "2021.07.04"]
[Round "3.4"]
[White "Venckevicius, Justas"]
[Black "Spevak, Dovydas"]
[Result "0-1"]
[WhiteElo "1692"]
[BlackElo "1432"]
[PlyCount "68"]
[EventDate "2021.??.??"]
[TimeControl "8+4"]
[WhiteClock "0:00:15"]
[BlackClock "0:00:21"]

1. e4 {[%emt 0:00:00]} e5 {[%emt 0:00:00]} 2. Nc3 {[%emt 0:00:01]} Nc6 {[%emt
0:00:03]} 3. f4 {[%emt 0:00:00]} exf4 {[%emt 0:00:30]} 4. Nf3 {[%emt 0:00:02]}
Be7 {[%emt 0:00:52]} 5. d4 {[%emt 0:00:03]} Bh4+ {[%emt 0:00:08]} 6. Ke2 {
[%emt 0:00:02]} Bg5 {[%emt 0:01:26]} 7. g3 {[%emt 0:00:43]} d6 {[%emt 0:01:21]}
8. gxf4 {[%emt 0:00:32]} Bh6 {[%emt 0:00:18]} 9. Kf2 {[%emt 0:05:24]} Bg4 {
[%emt 0:00:17]} 10. Bg2 {[%emt 0:00:10]} Bxf3 {[%emt 0:00:26]} 11. Kxf3 {[%emt
0:00:03]} Qf6 {[%emt 0:00:49]} 12. Ne2 {[%emt 0:00:02]} O-O-O {[%emt 0:00:38]}
13. c3 {[%emt 0:00:24]} Nge7 {[%emt 0:00:12]} 14. Bh3+ {[%emt 0:00:02]} Kb8 {
[%emt 0:00:03]} 15. Rf1 {[%emt 0:00:19]} Rhe8 {[%emt 0:00:21]} 16. Qe1 {[%emt
0:00:11]} Ng6 {[%emt 0:00:11]} 17. f5 {[%emt 0:00:15]} Nh4+ {[%emt 0:00:19]}
18. Kf2 {[%emt 0:00:11]} Rxe4 {[%emt 0:00:17]} 19. Kg1 {[%emt 0:00:21]} Rde8 {
[%emt 0:00:13]} 20. Bxh6 {[%emt 0:00:28]} gxh6 {[%emt 0:00:05]} 21. Rf4 Rxe2 {
[%emt 0:00:11]} 22. Qxh4 {[%emt 0:00:01]} Rg8+ {[%emt 0:00:17]} 23. Kf1 {[%emt
0:00:02]} Qxh4 {[%emt 0:00:14]} 24. Rxh4 {[%emt 0:00:01]} Rxh2 {[%emt 0:00:05]}
25. Rxh6 {[%emt 0:00:11]} Rh1+ {[%emt 0:00:01]} 26. Kf2 {[%emt 0:00:02]} Rxa1 {
[%emt 0:00:02]} 27. Rxh7 {[%emt 0:00:02]} Rxa2 {[%emt 0:00:03]} 28. Rxf7 {
[%emt 0:00:03]} Rxb2+ {[%emt 0:00:01]} 29. Kf3 {[%emt 0:00:02]} Rb3 {[%emt 0:
00:08]} 30. Ke4 {[%emt 0:00:05]} Rxc3 {[%emt 0:00:06]} 31. f6 {[%emt 0:00:01]}
Rxh3 {[%emt 0:00:03]} 32. d5 {[%emt 0:00:06]} Nd8 {[%emt 0:00:05]} 33. Rd7 {
[%emt 0:00:04]} b6 {[%emt 0:00:07]} 34. f7 {[%emt 0:00:02]} Rf8 {[%emt 0:00:04]
} 0-1

[Event "2021 m. Jauniu lyga. III etapas. B"]
[Site "Siauliai"]
[Date "2021.07.04"]
[Round "4.1"]
[White "Ser, Daniel"]
[Black "Spevak, Dovydas"]
[Result "1-0"]
[WhiteElo "1710"]
[BlackElo "1432"]
[PlyCount "123"]
[EventDate "2021.??.??"]
[TimeControl "8+4"]
[WhiteClock "0:00:22"]
[BlackClock "0:00:10"]

1. d4 {[%emt 0:00:00]} d5 {[%emt 0:00:03]} 2. Bf4 {[%emt 0:00:01]} e6 {[%emt 0:
00:05]} 3. e3 {[%emt 0:00:01]} Bd6 {[%emt 0:00:11]} 4. Bg3 {[%emt 0:00:03]} f5
{[%emt 0:00:06]} 5. c4 {[%emt 0:00:02]} c6 {[%emt 0:00:03]} 6. Nc3 {[%emt 0:00:
01]} Nf6 {[%emt 0:00:07]} 7. Bxd6 {[%emt 0:00:10]} Qxd6 {[%emt 0:00:01]} 8. Nf3
{[%emt 0:00:01]} Nbd7 {[%emt 0:00:03]} 9. Bd3 {[%emt 0:00:03]} Ne4 {[%emt 0:00:
01]} 10. c5 {[%emt 0:00:57]} Qe7 {[%emt 0:00:09]} 11. Qc2 {[%emt 0:00:03]} b6 {
[%emt 0:00:35]} 12. cxb6 {[%emt 0:02:11]} axb6 {[%emt 0:00:01]} 13. Ne5 {[%emt
0:00:38]} Nxe5 {[%emt 0:00:36]} 14. dxe5 {[%emt 0:00:00]} Bd7 {[%emt 0:01:38]}
15. f4 {[%emt 0:00:30]} Qh4+ {[%emt 0:00:27]} 16. g3 {[%emt 0:00:26]} Qe7 {
[%emt 0:04:03]} 17. Nxe4 {[%emt 0:00:09]} fxe4 {[%emt 0:00:06]} 18. Be2 {[%emt
0:00:06]} O-O {[%emt 0:00:18]} 19. O-O {[%emt 0:00:02]} c5 {[%emt 0:00:12]} 20.
b3 {[%emt 0:00:14]} b5 {[%emt 0:00:05]} 21. a4 {[%emt 0:00:19]} bxa4 {[%emt 0:
00:06]} 22. bxa4 {[%emt 0:00:01]} c4 {[%emt 0:00:06]} 23. Rfb1 {[%emt 0:00:03]}
Qc5 {[%emt 0:00:04]} 24. Qc3 {[%emt 0:00:00]} Rxa4 {[%emt 0:00:17]} 25. Rxa4 {
[%emt 0:00:49]} Bxa4 {[%emt 0:00:00]} 26. Bg4 {[%emt 0:00:04]} Qc6 {[%emt 0:00:
14]} 27. Qa5 {[%emt 0:00:52]} Ra8 {[%emt 0:00:05]} 28. Bxe6+ {[%emt 0:00:01]}
Kh8 {[%emt 0:00:06]} 29. Bxd5 {[%emt 0:00:50]} Rxa5 {[%emt 0:00:04]} 30. Bxc6
h6 {[%emt 0:00:07]} 31. Ra1 {[%emt 0:00:27]} c3 {[%emt 0:00:05]} 32. Bxa4 {
[%emt 0:00:20]} c2 {[%emt 0:00:02]} 33. Rc1 {[%emt 0:00:01]} Rxa4 {[%emt 0:00:
02]} 34. Rxc2 {[%emt 0:00:01]} Ra3 {[%emt 0:00:03]} 35. Kf2 {[%emt 0:00:01]}
Kh7 {[%emt 0:00:07]} 36. f5 {[%emt 0:00:01]} Ra5 {[%emt 0:00:03]} 37. g4 {
[%emt 0:00:03]} Rxe5 {[%emt 0:00:02]} 38. Kg3 {[%emt 0:00:01]} h5 {[%emt 0:00:
07]} 39. Kf4 {[%emt 0:00:05]} Re7 {[%emt 0:00:07]} 40. gxh5 {[%emt 0:00:05]}
Kh6 {[%emt 0:00:01]} 41. Rc8 {[%emt 0:00:11]} Kh7 {[%emt 0:00:03]} 42. Rc4 {
[%emt 0:00:04]} Kh6 {[%emt 0:00:07]} 43. Rxe4 {[%emt 0:00:01]} Rf7 {[%emt 0:00:
02]} 44. Re8 {[%emt 0:00:04]} Kh7 {[%emt 0:00:08]} 45. e4 {[%emt 0:00:01]} Ra7
{[%emt 0:00:04]} 46. h4 {[%emt 0:00:08]} Ra3 {[%emt 0:00:02]} 47. e5 {[%emt 0:
00:23]} Rh3 {[%emt 0:00:03]} 48. Kg4 {[%emt 0:00:05]} Re3 {[%emt 0:00:02]} 49.
e6 {[%emt 0:00:03]} Re4+ {[%emt 0:00:05]} 50. Kg5 {[%emt 0:00:00]} Re3 {[%emt
0:00:06]} 51. f6 {[%emt 0:00:08]} Re5+ {[%emt 0:00:07]} 52. Kf4 {[%emt 0:00:04]
} gxf6 {[%emt 0:00:01]} 53. e7 {[%emt 0:00:17]} Kg7 {[%emt 0:00:08]} 54. h6+ {
[%emt 0:00:01]} Kh7 {[%emt 0:00:01]} 55. h5 {[%emt 0:00:07]} Re1 {[%emt 0:00:
05]} 56. Kf5 {[%emt 0:00:02]} Rf1+ {[%emt 0:00:03]} 57. Ke6 {[%emt 0:00:01]}
Re1+ {[%emt 0:00:09]} 58. Kf7 {[%emt 0:00:00]} Re2 {[%emt 0:00:04]} 59. Ra8 {
[%emt 0:00:08]} Kxh6 {[%emt 0:00:04]} 60. e8=Q {[%emt 0:00:04]} Rxe8 {[%emt 0:
00:02]} 61. Rxe8 {[%emt 0:00:01]} Kxh5 {[%emt 0:00:01]} 62. Kxf6 {[%emt 0:00:
02]} 1-0

[Event "2021 m. Jauniu lyga. III etapas. B"]
[Site "Siauliai"]
[Date "2021.07.04"]
[Round "4.2"]
[White "Dijokas, Jokubas"]
[Black "Venckevicius, Justas"]
[Result "0-1"]
[WhiteElo "1335"]
[BlackElo "1692"]
[PlyCount "82"]
[EventDate "2021.??.??"]
[TimeControl "8+4"]
[WhiteClock "0:00:30"]
[BlackClock "0:01:35"]

1. e4 {[%emt 0:00:01]} c6 {[%emt 0:00:00]} 2. d4 {[%emt 0:00:02]} d5 {[%emt 0:
00:01]} 3. exd5 {[%emt 0:00:01]} cxd5 {[%emt 0:00:00]} 4. c4 {[%emt 0:00:01]}
Nc6 {[%emt 0:00:02]} 5. Nc3 {[%emt 0:00:03]} Nf6 {[%emt 0:00:02]} 6. Nf3 {
[%emt 0:00:02]} Bg4 {[%emt 0:00:00]} 7. cxd5 {[%emt 0:00:06]} Nxd5 {[%emt 0:00:
02]} 8. Qb3 {[%emt 0:00:16]} Nb6 {[%emt 0:03:32]} 9. d5 {[%emt 0:01:19]} Bxf3 {
[%emt 0:00:15]} 10. gxf3 {[%emt 0:00:06]} Ne5 {[%emt 0:00:04]} 11. Bb5+ {[%emt
0:00:47]} Nbd7 {[%emt 0:00:09]} 12. Ne4 {[%emt 0:00:51]} Rc8 {[%emt 0:01:48]}
13. f4 {[%emt 0:01:15]} Ng4 {[%emt 0:00:33]} 14. h3 {[%emt 0:00:50]} Ngf6 {
[%emt 0:00:02]} 15. Nxf6+ {[%emt 0:00:06]} exf6 {[%emt 0:00:09]} 16. Qe3+ {
[%emt 0:00:32]} Qe7 {[%emt 0:00:25]} 17. Bxd7+ {[%emt 0:00:45]} Kxd7 {[%emt 0:
00:02]} 18. Bd2 {[%emt 0:00:31]} Qc5 {[%emt 0:00:46]} 19. Rc1 {[%emt 0:01:13]}
Qxd5 {[%emt 0:00:02]} 20. Rg1 {[%emt 0:00:15]} Rxc1+ {[%emt 0:00:07]} 21. Bxc1
{[%emt 0:00:01]} Bb4+ {[%emt 0:00:25]} 22. Kf1 {[%emt 0:00:11]} Re8 {[%emt 0:
00:02]} 23. Qxe8+ {[%emt 0:00:10]} Kxe8 {[%emt 0:00:01]} 24. Rg3 {[%emt 0:00:
02]} Qd1+ {[%emt 0:00:03]} 25. Kg2 {[%emt 0:00:01]} Qxc1 {[%emt 0:00:03]} 26.
Rb3 {[%emt 0:00:01]} Qxf4 {[%emt 0:00:04]} 27. a3 {[%emt 0:00:02]} Qe4+ {[%emt
0:00:07]} 28. Rf3 {[%emt 0:00:06]} Bc5 {[%emt 0:00:03]} 29. Kg3 {[%emt 0:00:04]
} Kd7 {[%emt 0:00:09]} 30. b4 {[%emt 0:00:01]} Bd6+ {[%emt 0:00:01]} 31. Kg2 {
[%emt 0:00:03]} f5 {[%emt 0:00:02]} 32. h4 {[%emt 0:00:05]} h6 {[%emt 0:00:01]}
33. a4 {[%emt 0:00:03]} Bxb4 {[%emt 0:00:02]} 34. Kg3 {[%emt 0:00:03]} Bd6+ {
[%emt 0:00:02]} 35. Kg2 {[%emt 0:00:01]} g5 {[%emt 0:00:01]} 36. hxg5 {[%emt 0:
00:05]} hxg5 {[%emt 0:00:01]} 37. a5 {[%emt 0:00:05]} g4 {[%emt 0:00:01]} 38.
a6 {[%emt 0:00:02]} Qxf3+ {[%emt 0:00:01]} 39. Kf1 {[%emt 0:00:01]} Bc5 {[%emt
0:00:04]} 40. Ke1 {[%emt 0:00:02]} Qxf2+ {[%emt 0:00:03]} 41. Kd1 {[%emt 0:00:
02]} Be3 {[%emt 0:00:02]} 0-1

[Event "2021 m. Jauniu lyga. III etapas. B"]
[Site "Siauliai"]
[Date "2021.07.04"]
[Round "4.3"]
[White "Persinas, Vilius"]
[Black "Maciuitis, Ignas"]
[Result "0-1"]
[WhiteElo "1668"]
[BlackElo "1855"]
[PlyCount "49"]
[EventDate "2021.??.??"]
[TimeControl "8+4"]
[BlackClock "0:04:41"]

1. c4 {[%emt 0:00:00]} f5 {[%emt 0:00:02]} 2. g3 {[%emt 0:00:01]} Nf6 {[%emt 0:
00:00]} 3. Bg2 {[%emt 0:00:02]} e6 {[%emt 0:00:00]} 4. Nf3 {[%emt 0:00:03]} d5
{[%emt 0:00:02]} 5. d3 {[%emt 0:00:02]} Be7 {[%emt 0:00:01]} 6. O-O {[%emt 0:
00:02]} O-O {[%emt 0:00:02]} 7. Nc3 {[%emt 0:00:07]} c6 {[%emt 0:00:01]} 8. Rb1
{[%emt 0:00:05]} Bd7 {[%emt 0:00:01]} 9. b4 {[%emt 0:00:01]} Be8 {[%emt 0:00:
04]} 10. b5 {[%emt 0:01:04]} Nbd7 {[%emt 0:00:13]} 11. Bf4 {[%emt 0:00:17]} Nh5
{[%emt 0:00:12]} 12. Be5 {[%emt 0:00:06]} Nxe5 {[%emt 0:00:07]} 13. Nxe5 {
[%emt 0:00:01]} f4 {[%emt 0:00:01]} 14. Bh3 {[%emt 0:00:55]} Bd7 {[%emt 0:01:
10]} 15. cxd5 {[%emt 0:02:11]} cxd5 {[%emt 0:00:13]} 16. e4 {[%emt 0:00:45]} g6
{[%emt 0:00:11]} 17. exd5 {[%emt 0:00:25]} fxg3 {[%emt 0:00:34]} 18. hxg3 {
[%emt 0:00:33]} Bc8 {[%emt 0:00:11]} 19. dxe6 {[%emt 0:00:12]} Qd4 {[%emt 0:00:
11]} 20. Qe2 {[%emt 0:02:18]} Qxc3 {[%emt 0:00:14]} 21. Qe4 {[%emt 0:00:00]}
Nf6 {[%emt 0:00:39]} 22. Qe2 {[%emt 0:00:10]} Bd6 {[%emt 0:00:12]} 23. Nc4 {
[%emt 0:00:03]} Qd4 {[%emt 0:00:28]} 24. Rfe1 {[%emt 0:00:09]} Bxg3 {[%emt 0:
00:12]} 25. Kg2 {[%emt 0:00:06]} 0-1

[Event "2021 m. Jauniu lyga. III etapas. B"]
[Site "Siauliai"]
[Date "2021.07.04"]
[Round "4.4"]
[White "Ravlusevic, Evelina"]
[Black "Simkunaite, Gabija"]
[Result "0-1"]
[WhiteElo "1748"]
[BlackElo "1899"]
[PlyCount "46"]
[EventDate "2021.??.??"]
[TimeControl "8+4"]
[WhiteClock "0:04:48"]
[BlackClock "0:04:45"]

1. d4 {[%emt 0:00:02]} Nf6 {[%emt 0:00:02]} 2. c4 {[%emt 0:00:02]} e5 {[%emt 0:
00:02]} 3. dxe5 {[%emt 0:00:02]} Ng4 {[%emt 0:00:02]} 4. Nf3 {[%emt 0:00:01]}
Bc5 {[%emt 0:00:03]} 5. e3 {[%emt 0:00:02]} Nc6 {[%emt 0:00:02]} 6. Be2 {[%emt
0:00:04]} O-O {[%emt 0:00:01]} 7. O-O {[%emt 0:00:02]} Re8 {[%emt 0:00:01]} 8.
Nc3 {[%emt 0:00:06]} Ngxe5 {[%emt 0:00:11]} 9. a3 {[%emt 0:00:10]} a5 {[%emt 0:
00:02]} 10. Nd5 {[%emt 0:00:15]} Ra6 {[%emt 0:00:44]} 11. Rb1 {[%emt 0:00:07]}
Nxf3+ {[%emt 0:00:07]} 12. Bxf3 {[%emt 0:00:04]} Ne5 {[%emt 0:00:04]} 13. b4 {
[%emt 0:00:13]} axb4 {[%emt 0:00:20]} 14. axb4 {[%emt 0:00:01]} Bf8 {[%emt 0:
00:29]} 15. Be2 {[%emt 0:00:10]} Rg6 {[%emt 0:00:33]} 16. Nf4 {[%emt 0:00:30]}
Rh6 {[%emt 0:00:02]} 17. c5 {[%emt 0:00:30]} d6 {[%emt 0:00:30]} 18. Bb2 {
[%emt 0:00:13]} Qh4 {[%emt 0:00:48]} 19. h3 {[%emt 0:00:23]} Ng6 {[%emt 0:00:
13]} 20. Nxg6 {[%emt 0:01:16]} Rxg6 {[%emt 0:00:15]} 21. Bd3 {[%emt 0:00:15]}
Rxg2+ {[%emt 0:00:19]} 22. Kxg2 {[%emt 0:00:11]} Bxh3+ {[%emt 0:00:02]} 23. Kg1
{[%emt 0:00:06]} Qg5+ {[%emt 0:00:02]} 0-1